bitfinex-derivatives/quotes_ETHF0:USTF0_20251021
["timestamp","ask_amount","ask_price","bid_price","bid_amount"]
[1761077136081,0.00210988,3992.3,3991.4,0.3302]
[1761077136082,0.3193,3992.0,3991.4,0.3302]
[1761077136278,0.3193,3992.2,3992.0,0.3302]
[1761077136585,0.45071,3992.1,3992.0,0.3302]
[1761077136781,0.3193,3992.2,3992.1,0.78091]
[1761077136981,0.3193,3992.2,3992.1,0.3302]
[1761077137380,0.77,3992.2,3992.1,0.3302]
[1761077137690,0.3193,3992.2,3992.1,0.3302]
[1761077137894,0.77,3992.2,3992.1,0.3302]
[1761077138085,0.3193,3992.2,3992.1,0.3302]
[1761077138387,0.3193,3992.2,3992.1,0.78091]
[1761077138690,0.00210988,3992.3,3992.2,0.7809]
[1761077139287,0.00210988,3992.3,3992.2,1.2089]
[1761077144594,0.89599988,3992.3,3992.2,0.7582]
[1761077144797,0.3193,3991.9,3991.8,1.20894]
[1761077144990,0.5446,3991.9,3991.8,1.20894]
[1761077145190,0.99533,3991.9,3991.8,0.7582]
[1761077145499,0.5446,3991.9,3991.8,1.20894]
[1761077145998,1.21323,3991.9,3991.8,0.428]
[1761077147302,1.21323,3991.9,3991.8,0.2134]
[1761077147795,0.7625,3991.9,3991.8,1.20894]
[1761077147995,1.21323,3991.9,3991.8,0.7582]
[1761077148302,0.99533,3991.9,3991.8,0.7582]
[1761077148597,1.21323,3991.9,3991.8,0.428]
[1761077148997,0.7625,3991.9,3991.8,0.7582]
[1761077149304,1.21323,3991.9,3991.8,0.7582]
[1761077150005,0.7625,3991.9,3991.8,0.7582]
[1761077150500,1.21323,3991.9,3991.8,0.7582]
[1761077151105,0.7625,3991.9,3991.8,0.7582]
[1761077151298,0.5446,3991.9,3991.8,1.20894]
[1761077151706,0.551,3992.2,3992.1,0.7657]
[1761077151906,1.0017,3992.2,3992.1,0.7657]
[1761077152205,0.551,3992.2,3992.1,0.7657]
[1761077152504,1.0017,3992.2,3992.1,0.7657]
[1761077152703,1.234,3992.2,3992.1,0.7657]
[1761077153299,1.234,3992.2,3992.1,0.4501]
[1761077153806,1.234,3992.2,3992.1,0.2258]
[1761077153997,1.234,3992.2,3992.1,0.4501]
[1761077155304,1.78756349,3992.2,3992.1,0.4501]
[1761077155999,0.00210988,3992.3,3992.2,1.2164]
[1761077158704,1.2339,3993.1,3993.0,0.4501]
[1761077158900,1.23392,3992.9,3992.8,0.2258]
[1761077159301,0.7833,3992.9,3992.8,1.21633]
[1761077159609,1.23389,3993.2,3993.1,0.2258]
[1761077159813,1.79045241,3993.2,3993.1,0.2258]
[1761077160508,0.7833,3992.9,3992.8,3.4336]
[1761077160702,0.7833,3992.9,3992.8,4.10853]
[1761077160901,0.7833,3992.9,3992.8,4.42413]
[1761077161101,0.3243,3992.9,3992.8,4.42413]
[1761077161306,0.3243,3992.8,3992.5,0.67646]
[1761077161612,0.551,3992.9,3992.8,0.7657]
[1761077162211,0.551,3992.9,3992.8,1.21633]
[1761077162404,0.1349,3993.0,3992.7,3.2078]
[1761077162405,0.0030114,3993.2,3993.1,0.7657]
[1761077162604,0.0030114,3993.2,3993.1,4.42409]
[1761077162808,4.09271015,3994.1,3994.0,0.76609]
[1761077162809,3.2078,3994.1,3994.0,0.76609]
[1761077163016,0.77476,3994.3,3994.0,0.90059]
[1761077163017,1.00146,3994.3,3994.0,0.90059]
[1761077163310,0.551,3994.3,3994.2,0.7657]
[1761077163503,0.7833,3994.3,3994.2,0.7657]
[1761077163704,1.33830532,3994.3,3994.2,0.45236969]
[1761077164104,0.7851001,3994.3,3994.2,0.76796969]
[1761077164499,0.7851001,3994.3,3994.2,0.45236969]
[1761077164913,0.7851001,3994.3,3994.2,0.22806969]
[1761077165615,0.7851001,3994.3,3994.2,0.00226969]
[1761077166409,0.7851001,3994.3,3994.2,0.45236969]
[1761077166611,0.7851001,3994.3,3994.2,0.76796969]
[1761077167111,0.7851001,3994.3,3994.2,0.45236969]
[1761077167313,0.459,3992.9,3992.7,3.2078]
[1761077167511,0.1349,3993.0,3992.3,3.5234]
[1761077167512,0.3243,3992.4,3992.3,3.5234]
[1761077167910,3.2078,3993.4,3992.7,0.3156]
[1761077167911,0.3243,3993.1,3992.7,0.3156]
[1761077168110,0.77487,3993.4,3993.2,0.3156]
[1761077168307,0.3243,3993.4,3993.3,0.3156]
[1761077169113,0.77487,3993.3,3993.2,0.00312321]
[1761077169412,0.1349,3992.4,3992.1,3.5234]
[1761077169616,0.3243,3992.3,3992.1,3.65851]
[1761077169914,0.3243,3992.2,3992.1,3.2078]
[1761077170510,0.3243,3992.2,3992.1,3.20962626]
[1761077171715,0.551,3992.2,3992.1,3.43542626]
[1761077173206,0.551,3992.2,3992.1,3.97532626]
[1761077173407,0.2267,3992.2,3992.1,3.97532626]
[1761077173614,0.6859,3992.4,3992.3,0.2258]
[1761077173811,0.2267,3992.6,3992.5,0.4501]
[1761077174010,0.7833,3992.6,3992.5,0.4501]
[1761077174209,0.2267,3992.3,3992.2,0.6765]
[1761077174508,1.234,3992.2,3992.1,0.00182626]
[1761077178317,0.7833,3992.2,3992.1,0.90263626]
[1761077178709,0.7833,3992.2,3992.1,0.45192626]
[1761077178909,1.234,3992.2,3992.1,0.45192626]
[1761077180023,0.7833,3992.2,3992.1,0.45192626]
[1761077180515,1.234,3992.2,3992.1,0.45192626]
[1761077180911,1.234,3992.2,3992.1,0.00182626]
[1761077181421,1.234,3992.2,3992.1,0.22602626]
[1761077182821,0.7833,3992.2,3992.1,1.23193626]
[1761077183119,0.7833,3992.2,3992.1,0.78122626]
[1761077183417,0.7833,3992.2,3992.1,1.23193626]
[1761077183815,0.3472,3992.8,3992.6,0.3352]
[1761077184022,0.5706,3992.8,3992.7,0.7794]
[1761077184616,1.24803,3992.8,3992.7,0.7794]
[1761077185118,0.7974,3992.8,3992.7,1.23004]
[1761077185616,1.24803,3992.8,3992.7,0.7794]
[1761077186014,0.5706,3992.8,3992.7,1.23004]
[1761077186209,1.02122,3992.9,3992.8,0.7794]
[1761077186414,1.24802,3992.9,3992.8,0.4442]
[1761077187511,0.45061,3993.0,3992.8,0.7794]
[1761077187714,0.45061,3993.0,3992.8,0.4442]
[1761077187917,0.67401,3993.0,3992.9,0.7794]
[1761077188116,1.02121,3993.0,3992.9,0.7794]
[1761077188921,1.24801,3993.0,3992.9,0.7794]
[1761077189319,1.37851,3993.0,3992.9,0.4442]
[1761077189818,0.3472,3993.4,3992.9,0.4442]
[1761077190120,1.2479,3993.9,3993.8,0.7794]
[1761077190316,0.7974,3993.9,3993.8,1.22992]
[1761077190520,0.5706,3993.9,3993.8,1.22992]
[1761077190720,0.5706,3994.1,3994.0,1.22989]
[1761077190920,0.5706,3994.1,3994.0,0.7794]
[1761077191221,0.7974,3994.1,3994.0,0.7794]
[1761077191423,1.24788,3994.1,3994.0,0.7794]
[1761077191722,0.7974,3994.1,3994.0,1.22989]
[1761077192316,0.7974,3994.1,3994.0,0.89469]
[1761077192626,0.4522701,3994.3,3994.0,0.89469]
[1761077192627,0.0018001,3994.3,3994.2,0.7814]
[1761077193023,0.0018001,3994.3,3994.2,1.23187]
[1761077193422,0.3376001,3994.3,3994.2,1.23187]
[1761077193622,0.0018001,3994.3,3994.2,1.23187]
[1761077194120,1.0168601,3994.3,3994.2,0.7814]
[1761077194319,1.2278601,3994.3,3994.2,0.7814]
[1761077194519,0.7774001,3994.3,3994.2,0.7814]
[1761077195225,0.7774001,3994.3,3994.2,1.23187]
[1761077196827,0.7774001,3994.3,3994.2,0.4488]
[1761077197527,0.7774001,3994.3,3994.2,0.7814]
[1761077197727,0.0018001,3994.3,3994.2,4.43967]
[1761077197929,0.9061,3995.0,3994.9,0.7814]
[1761077198126,1.35648,3995.0,3994.9,0.4488]
[1761077198316,0.7756,3995.0,3994.9,1.23179]
[1761077198520,0.2288,3995.0,3994.9,1.23179]
[1761077198722,0.4398,3995.3,3995.2,1.23176]
[1761077199030,3.6476,3995.7,3995.6,0.4488]
[1761077199228,3.98528244,3995.7,3995.6,0.2205]
[1761077199929,0.77748244,3995.7,3995.6,0.2205]
[1761077200132,0.7756,3995.4,3995.3,1.23174]
[1761077200318,0.5646,3995.6,3995.5,0.7814]
[1761077200924,0.00188244,3995.7,3995.5,0.4488]
[1761077201128,0.77748244,3995.7,3995.6,0.7814]
[1761077201328,0.77748244,3995.7,3995.6,0.2205]
[1761077202523,0.77748244,3995.7,3995.6,0.4488]
[1761077203124,0.77748244,3995.7,3995.6,0.7814]
[1761077203630,0.77748244,3995.7,3995.6,0.4488]
[1761077204520,0.77748244,3995.7,3995.3,0.3326]
[1761077204521,0.2288,3995.4,3995.3,1.23174]
[1761077204721,0.7756,3995.4,3995.3,1.23174]
[1761077205123,0.9024,3995.0,3994.9,0.22253185]
[1761077205324,0.4398,3994.2,3994.1,0.2205]
[1761077205524,0.1268,3994.0,3993.8,3.4283]
[1761077205724,0.1268,3994.0,3993.8,3.2078]
[1761077205725,0.8903,3993.9,3993.8,3.2078]
[1761077205925,0.7756,3993.9,3993.8,3.2078]
[1761077206429,1.2261,3993.9,3993.8,0.00258355]
[1761077212634,1.2261,3993.9,3992.8,3.5404]
[1761077212635,0.7969,3992.9,3992.8,3.65843]
[1761077212830,0.7969,3992.9,3992.8,3.87953]
[1761077213135,0.7969,3992.9,3992.8,4.42243]
[1761077213439,0.7969,3992.9,3992.8,3.9718]
[1761077213637,0.79929022,3992.9,3992.8,3.97375162]
[1761077214039,0.79929022,3992.9,3992.8,4.42438162]
[1761077215337,0.79929022,3992.9,3992.8,3.97375162]
[1761077216631,0.79929022,3992.9,3992.8,4.42438162]
[1761077217240,0.79929022,3992.9,3992.8,3.88148162]
[1761077217738,0.79929022,3992.9,3992.8,4.42438162]
[1761077218041,0.00239022,3992.9,3992.8,4.42438162]
[1761077222137,1.24991022,3992.9,3992.8,3.20975162]
[1761077222337,0.7969,3991.9,3991.8,4.09514]
[1761077222540,0.5677,3991.9,3991.8,4.42254]
[1761077222741,0.5677,3992.1,3992.0,1.21471]
[1761077223135,0.5677,3992.1,3992.0,0.764]
[1761077223340,1.24761,3992.1,3992.0,0.43926894]
[1761077223741,0.7969,3992.1,3992.0,0.43926894]
[1761077223948,0.7969,3992.1,3992.0,1.21738894]
[1761077224144,0.7969,3992.1,3992.0,0.88998894]
[1761077224546,0.7969,3992.1,3992.0,0.43926894]
[1761077225441,1.24761,3992.1,3992.0,0.00266894]
[1761077225842,6.24761,3992.1,3992.0,0.00266894]
[1761077227046,1.24761,3992.1,3992.0,0.00266894]
[1761077227249,1.24761,3992.1,3990.3,2.4712622]
[1761077227250,0.4588,3990.8,3990.7,0.4366]
[1761077227548,0.7969,3990.8,3990.7,0.2211]
[1761077227842,0.5677,3991.4,3991.1,0.3274]
[1761077228044,0.5677,3991.4,3991.3,0.764]
[1761077228645,0.3381,3991.3,3990.9,3.4289]
[1761077228844,0.9336,3991.0,3990.9,0.4366]
[1761077229043,0.9336,3991.0,3990.9,0.764]
[1761077229441,0.9336,3991.0,3990.9,0.4366]
[1761077229642,0.5955,3991.0,3990.7,0.42068653]
[1761077229841,0.5955,3991.0,3990.7,0.00255937]
[1761077229842,0.7969,3990.8,3990.7,0.00255937]
[1761077230344,0.7969,3990.8,3989.5,0.1085]
[1761077230345,0.3381,3989.9,3989.5,0.2211]
[1761077230540,0.7969,3989.4,3989.3,3.4289]
[1761077230936,0.90981,3989.4,3988.9,3.4289]
[1761077231141,0.1367,3988.5,3988.3,3.2078]
[1761077231438,0.3381,3988.4,3988.3,0.00235769]
[1761077232254,0.3381,3988.4,3987.4,3.2078]
[1761077232255,0.3381,3987.9,3987.4,3.2078]
[1761077232551,0.45121,3987.7,3987.4,3.2078]
[1761077232740,0.3381,3987.5,3987.4,3.2078]
[1761077233142,0.3381,3987.5,3987.1,0.3274]
[1761077233341,0.3381,3987.5,3987.1,0.00263749]
[1761077234141,0.45126,3987.3,3987.1,0.00263749]
[1761077234341,0.3381,3987.8,3987.2,0.3274]
[1761077234546,0.3381,3987.8,3987.6,3.5352]
[1761077235047,0.3381,3987.8,3987.7,0.3274]
[1761077235640,3.34681246,3988.5,3987.7,0.3274]
[1761077235641,0.3381,3988.1,3987.7,0.3274]
[1761077236046,0.3381,3988.1,3987.6,3.2078]
[1761077236241,0.3381,3988.1,3987.2,3.2078]
[1761077236441,0.3381,3987.9,3987.2,3.2078]
[1761077236642,0.3381,3987.2,3987.1,0.00263749]
[1761077237154,5.3381,3987.2,3987.1,0.00263749]
[1761077237752,0.78943,3986.6,3985.9,0.3274]
[1761077237950,0.1367,3986.4,3985.6,3.65924]
[1761077238149,0.3381,3986.3,3986.1,0.3274]
[1761077238545,0.3381,3986.3,3986.1,0.52319482]
[1761077238741,0.3381,3986.3,3986.1,0.00244525]
[1761077239143,0.3453,3985.1,3985.0,3.2078]
[1761077239350,0.3453,3986.2,3985.1,0.1283]
[1761077239555,0.3453,3986.2,3985.9,3.5516]
[1761077240050,0.34784011,3986.2,3986.0,0.3438]
[1761077240255,0.00254011,3986.2,3986.0,0.3438]
[1761077240754,0.00254011,3986.2,3986.1,0.3187]
[1761077241153,0.3247,3987.4,3986.2,0.3187]
[1761077241348,0.3247,3987.4,3987.3,0.3187]
[1761077241545,3.5325,3987.9,3987.3,0.3187]
[1761077241859,0.3247,3987.9,3987.4,3.5265]
[1761077242157,0.32694274,3987.9,3987.4,3.5265]
[1761077242358,0.3247,3987.8,3986.9,0.3187]
[1761077242559,3.2078,3987.5,3986.6,3.2078]
[1761077242760,0.1285,3987.2,3986.6,3.2078]
[1761077243053,0.3247,3987.3,3986.9,0.3187]
[1761077243257,3.2078,3987.5,3987.0,0.3187]
[1761077243444,0.3247,3987.4,3986.6,3.2078]
[1761077243855,0.3247,3987.4,3986.6,3.65912]
[1761077244058,0.3247,3987.4,3986.6,3.97782]
[1761077244262,0.3247,3987.4,3986.7,0.77002]
[1761077244452,3.2078,3987.5,3987.1,0.3187]
[1761077244649,0.3247,3987.8,3987.2,0.3187]
[1761077245157,3.53474274,3987.9,3987.5,0.3187]
[1761077245357,3.53474274,3987.9,3987.1,3.2078]
[1761077245358,0.3247,3987.8,3987.1,3.2078]
[1761077245558,0.3247,3987.8,3987.1,3.65907]
[1761077245850,0.3247,3987.8,3987.4,0.3187]
[1761077246051,3.21004274,3987.9,3987.1,3.2078]
[1761077246256,0.3247,3987.8,3987.2,0.3187]
[1761077246468,0.3247,3987.8,3987.4,0.76993]
[1761077246654,0.3247,3987.8,3987.5,0.45122]
[1761077246960,0.3247,3987.8,3987.5,0.3187]
[1761077247957,0.00224274,3987.9,3987.6,0.3187]
[1761077248162,0.00224274,3987.9,3987.8,0.3187]
[1761077250660,0.00224274,3987.9,3987.8,5.3187]
[1761077254154,0.00224274,3987.9,3987.8,5.76989]
[1761077255657,0.32694274,3987.9,3987.3,0.76995]
[1761077255851,0.32694274,3987.9,3987.3,0.3187]
[1761077256056,0.00224274,3987.9,3987.8,0.76989]
[1761077256860,0.00224274,3987.9,3987.8,9.80789]
[1761077257859,0.00224274,3987.9,3987.8,9.30789]
[1761077258263,0.00224274,3987.9,3987.8,9.75908]
[1761077258463,0.32694274,3987.9,3987.8,9.75908]
[1761077258670,0.32694274,3987.9,3987.8,9.48919]
[1761077258965,0.32694274,3987.9,3987.8,9.038]
[1761077259664,3.53474274,3987.9,3987.8,9.038]
[1761077259863,0.3247,3987.8,3987.2,3.2078]
[1761077260168,0.3247,3987.5,3987.3,0.45125]
[1761077260360,0.3247,3987.5,3987.2,3.2078]
[1761077260562,0.3247,3987.5,3987.2,3.65906]
[1761077260762,0.3247,3987.5,3987.2,3.2078]
[1761077261069,0.3247,3987.4,3987.0,5.874]
[1761077261263,0.3247,3987.4,3987.0,6.32528]
[1761077261473,3.2078,3987.5,3986.7,0.3187]
[1761077261474,0.3247,3987.3,3986.7,0.3187]
[1761077261763,3.2078,3987.5,3986.6,3.2078]
[1761077261764,0.3247,3986.9,3986.6,3.2078]
[1761077261970,0.3247,3986.9,3986.6,3.97783]
[1761077262265,0.3247,3986.9,3986.7,0.45132]
[1761077262455,0.3247,3986.9,3986.6,3.2078]
[1761077264165,0.3247,3986.9,3986.7,0.77001]
[1761077264463,0.3247,3986.9,3986.6,3.2078]
[1761077264464,0.3247,3987.4,3987.1,0.45127]
[1761077264669,0.3247,3987.4,3987.2,0.3187]
[1761077265072,0.3247,3987.4,3987.2,0.76995]
[1761077265262,0.3247,3987.4,3987.3,0.3187]
[1761077265664,0.3247,3987.4,3987.0,0.45128]
[1761077265864,0.3247,3987.4,3987.2,0.3187]
[1761077266068,0.3247,3987.4,3986.6,3.2078]
[1761077266264,0.3247,3987.4,3987.1,0.76997]
[1761077266465,0.3247,3987.4,3987.2,0.45126]
[1761077266665,0.3247,3987.8,3987.4,0.3187]
[1761077266864,0.3247,3987.7,3987.1,0.45126]
[1761077267068,0.3247,3987.5,3987.1,0.76996]
[1761077267471,0.3247,3987.4,3986.7,0.3187]
[1761077267663,0.3247,3986.9,3986.6,3.2078]
[1761077267869,0.3247,3986.7,3986.6,3.2078]
[1761077269774,0.3247,3986.7,3986.6,3.65913]
[1761077269965,0.3247,3986.7,3986.6,3.97783]
[1761077270269,0.3247,3987.3,3986.7,0.3187]
[1761077270575,0.45124,3987.4,3986.7,0.3187]
[1761077270576,0.3247,3987.1,3986.8,0.3187]
[1761077270771,0.55181967,3987.0,3986.8,0.3187]
[1761077270976,0.88711967,3986.9,3986.8,0.77001]
[1761077271178,0.3353,3986.9,3986.8,0.77001]
[1761077271869,0.78654,3987.4,3986.8,0.77001]
[1761077272074,0.3353,3987.2,3986.9,0.3358]
[1761077272276,0.3353,3987.2,3986.6,3.2078]
[1761077272277,0.88699602,3987.1,3987.0,0.78708]
[1761077272480,0.88699602,3987.1,3987.0,0.3358]
[1761077272670,0.3353,3987.0,3986.8,0.4513]
[1761077273067,3.2078,3987.5,3986.9,0.3358]
[1761077273268,0.55196638,3987.4,3987.2,0.3358]
[1761077273472,0.55196638,3987.3,3987.2,0.78706]
[1761077273978,0.3353,3987.3,3987.2,0.78706]
[1761077274474,0.3353,3987.3,3987.2,0.3358]
[1761077274667,0.3353,3987.3,3987.0,3.2078]
[1761077275468,0.3353,3987.3,3987.0,3.65908]
[1761077275879,0.3353,3987.3,3987.0,3.2078]
[1761077276279,0.3353,3987.3,3987.0,3.65908]
[1761077276577,0.3353,3986.8,3986.2,0.3358]
[1761077276786,0.3353,3986.9,3986.3,0.3358]
[1761077277287,0.3353,3987.3,3986.6,0.3358]
[1761077277476,0.3353,3987.1,3986.7,0.3358]
[1761077277780,0.58928,3987.0,3986.5,3.2078]
[1761077277981,0.3353,3986.9,3986.5,3.2078]
[1761077278371,0.3353,3986.9,3986.6,0.3358]
[1761077278776,0.3353,3986.9,3986.7,0.3358]
[1761077278973,0.3353,3987.4,3986.8,0.3358]
[1761077279171,0.3353,3987.2,3987.0,0.3358]
[1761077279372,0.3353,3987.2,3987.0,0.78708]
[1761077279679,0.3353,3987.4,3987.2,0.3358]
[1761077279989,0.3353,3987.4,3986.9,3.2078]
[1761077279990,0.3353,3987.8,3987.5,0.45123]
[1761077280278,3.21004274,3987.9,3987.7,0.3358]
[1761077280279,0.00224274,3987.9,3987.7,0.3358]
[1761077280483,0.33754274,3987.9,3987.5,0.45123]
[1761077280673,0.33754274,3987.9,3987.4,0.78703]
[1761077280873,0.33754274,3987.9,3987.6,0.45121]
[1761077281369,0.33754274,3987.9,3987.5,0.45123]
[1761077281878,0.33754274,3987.9,3987.5,0.78703]
[1761077282073,0.3353,3987.8,3987.3,3.2078]
[1761077282279,0.3353,3987.8,3987.3,0.45125]
[1761077282486,0.3353,3987.8,3987.1,0.3358]
[1761077282682,0.3353,3987.5,3987.1,0.78707]
[1761077283079,0.3353,3987.5,3987.1,0.3358]
[1761077283274,3.21004274,3987.9,3987.3,0.3358]
[1761077283585,3.54534274,3987.9,3987.3,0.3358]
[1761077283785,3.54534274,3987.9,3987.5,0.3358]
[1761077283991,3.54534274,3987.9,3987.2,3.2078]
[1761077283992,0.3353,3987.8,3987.6,0.3358]
[1761077284188,0.3353,3987.7,3987.2,3.65906]
[1761077284489,0.3353,3987.7,3987.4,0.78704]
[1761077284873,0.3353,3987.7,3987.5,0.3358]
[1761077285377,0.3353,3987.7,3987.2,3.2078]
[1761077285572,0.00224274,3987.9,3987.8,0.45119]
[1761077285787,0.33754274,3987.9,3987.3,0.3358]
[1761077286090,0.3353,3987.8,3987.5,0.78703]
[1761077286479,0.3353,3987.8,3987.5,0.3358]
[1761077287090,0.3353,3987.8,3987.5,0.45122]
[1761077287291,0.3353,3987.8,3987.5,0.78702]
[1761077287586,0.3353,3987.8,3987.6,0.3358]
[1761077287783,0.3353,3987.8,3987.4,0.78704]
[1761077287987,0.3353,3987.8,3987.5,0.45122]
[1761077288182,0.00224274,3987.9,3987.8,0.78699]
[1761077289084,3.2078,3989.2,3988.9,0.3358]
[1761077289388,0.3353,3989.0,3988.7,0.3358]
[1761077289582,0.3353,3989.0,3988.7,0.78689]
[1761077290085,0.3353,3988.9,3988.7,0.00217102]
[1761077290284,0.3353,3988.7,3987.8,0.3358]
[1761077290483,0.3353,3988.2,3988.0,3.2078]
[1761077290684,0.78643,3988.4,3988.1,0.3358]
[1761077290889,0.4733,3988.8,3988.3,0.3358]
[1761077291085,0.4733,3988.8,3988.4,0.3358]
[1761077291086,0.3353,3988.6,3988.4,0.3358]
[1761077291289,0.78641,3988.5,3988.4,0.0031302]
[1761077291588,0.3353,3988.5,3988.4,0.0031302]
[1761077292187,0.78641,3988.5,3988.4,0.0031302]
[1761077292382,0.3353,3988.2,3987.2,3.2078]
[1761077292685,0.3353,3987.8,3987.5,0.3358]
[1761077292888,0.78651,3987.7,3987.5,0.3358]
[1761077293078,0.138,3988.2,3987.5,0.3358]
[1761077293079,0.45117,3988.1,3987.5,0.3358]
[1761077293284,0.3353,3988.4,3987.8,0.3358]
[1761077293481,0.45115,3988.2,3987.9,0.3358]
[1761077293791,0.45118,3987.9,3987.8,0.00317697]
[1761077293990,0.3353,3987.9,3987.8,0.45436697]
[1761077294192,0.78647,3988.1,3987.9,0.3358]
[1761077294587,0.78647,3988.1,3987.8,0.45436697]
[1761077294588,0.3353,3988.5,3988.0,3.2078]
[1761077294801,0.45112,3988.4,3988.2,0.3358]
[1761077294995,0.3353,3988.2,3988.0,0.3358]
[1761077295501,0.45114,3988.3,3988.1,0.78696]
[1761077295790,0.3353,3988.1,3987.8,3.66215697]
[1761077295991,0.78648,3987.9,3987.8,0.00317697]
[1761077296688,0.3353,3987.9,3987.8,0.00317697]
[1761077296891,0.45118,3987.9,3987.8,0.33897697]
[1761077297582,0.78648,3987.9,3987.8,0.33897697]
[1761077297786,0.78648,3987.9,3987.8,0.00317697]
[1761077298591,0.3353,3988.3,3987.8,0.33897697]
[1761077299000,0.45118,3987.9,3987.8,0.33897697]
[1761077299497,0.78988,3987.9,3987.8,0.33897697]
[1761077299693,0.78988,3987.9,3987.8,0.00317697]
[1761077302392,3.99768,3987.9,3987.8,0.00317697]
[1761077303484,0.3221,3987.3,3986.8,0.89878433]
[1761077303690,0.59135,3986.4,3986.1,0.89878433]
[1761077303887,0.77347,3986.2,3986.1,0.89878433]
[1761077304092,0.3221,3985.7,3985.6,3.2078]
[1761077304598,0.32443539,3985.7,3985.6,3.21041012]
[1761077304993,0.32443539,3985.7,3985.6,3.54351012]
[1761077305493,0.32443539,3985.7,3985.6,3.21041012]
[1761077305694,0.32443539,3985.7,3985.6,3.54351012]
[1761077306903,0.32443539,3985.7,3985.6,3.21041012]
[1761077309996,0.32443539,3985.7,3985.6,0.00261012]
[1761077312000,0.77586539,3985.7,3985.6,0.00261012]
[1761077316901,1.20886539,3985.7,3985.6,0.00261012]
[1761077318305,1.20886539,3985.7,3984.9,0.20169562]
[1761077318306,1.34661,3985.0,3984.9,0.20169562]
[1761077318507,1.20661,3985.0,3984.9,0.4261]
[1761077319003,0.77362,3984.9,3984.8,9.037]
[1761077319196,0.45158,3984.4,3984.3,3.2078]
[1761077319401,0.7551,3984.4,3984.3,3.2078]
[1761077319602,0.5424,3984.4,3984.3,3.96973764]
[1761077319802,0.5424,3984.4,3984.3,4.17065416]
[1761077320110,0.99395,3984.6,3984.5,0.2134]
[1761077320295,1.20668,3984.4,3984.3,3.62485416]
[1761077320500,1.20668,3984.4,3984.3,3.42393764]
[1761077321104,1.12867,3985.4,3984.3,3.42393764]
[1761077321105,3.6699,3985.5,3984.5,0.1105]
[1761077321309,0.3221,3985.6,3985.3,0.3331]
[1761077321810,0.3221,3985.4,3985.2,0.3331]
[1761077322006,0.3221,3985.4,3985.3,0.45147]
[1761077322206,0.3221,3985.6,3985.5,0.3331]
[1761077323305,0.00233539,3985.7,3985.6,0.3331]
[1761077323510,0.00233539,3985.7,3985.6,0.78454]
[1761077323912,0.3221,3985.6,3985.3,0.78457]
[1761077324208,0.45144,3985.6,3985.3,0.78457]
[1761077324410,0.3221,3985.5,3985.4,0.78456]
[1761077325005,0.00233539,3985.7,3985.5,0.45145]
[1761077325213,0.32443539,3985.7,3985.6,0.45144]
[1761077325508,0.3221,3986.9,3985.8,0.3331]
[1761077325812,0.3221,3986.3,3985.8,3.2078]
[1761077326010,0.3221,3985.9,3985.6,0.3331]
[1761077326313,0.3221,3985.9,3985.7,0.3331]
[1761077326510,0.14,3985.8,3985.4,3.2078]
[1761077326714,0.3221,3985.7,3985.4,3.2078]
[1761077326909,0.3221,3985.7,3985.4,3.65926]
[1761077327103,0.3221,3985.7,3985.4,3.2078]
[1761077327304,0.3221,3985.7,3985.5,0.3331]
[1761077327515,0.3221,3985.7,3985.4,3.2078]
[1761077327918,0.3221,3985.7,3985.5,0.45145]
[1761077328319,0.3221,3985.7,3985.5,0.3331]
[1761077328519,0.3221,3985.7,3985.4,3.65926]
[1761077328910,0.3221,3985.7,3985.5,0.45145]
[1761077329218,0.3221,3985.7,3985.5,0.78455]
[1761077329415,0.3221,3985.7,3985.6,0.45144]
[1761077329811,0.3221,3985.7,3985.6,0.78454]
[1761077331113,0.31894734,3985.9,3985.8,0.45142]
[1761077331309,0.31894734,3985.9,3985.8,3.99012]
[1761077331808,0.31894734,3985.9,3985.8,4.43062]
[1761077332015,0.31894734,3985.9,3985.8,3.9792]
[1761077332422,0.54734734,3985.9,3985.8,3.9792]
[1761077332614,0.54734734,3985.9,3985.8,3.6483]
[1761077332924,0.77464734,3985.9,3985.8,3.6483]
[1761077333818,0.77464734,3985.9,3985.8,0.4405]
[1761077338125,0.772,3985.7,3985.6,0.2168]
[1761077338321,0.772,3985.7,3985.6,0.89194]
[1761077338519,0.772,3985.7,3985.6,0.4405]
[1761077338920,0.772,3985.7,3985.6,0.89194]
[1761077339817,0.772,3985.7,3985.6,1.22284]
[1761077340129,0.5447,3985.7,3985.6,0.7714]
[1761077340317,0.5447,3985.7,3985.6,1.22284]
[1761077340721,0.772,3985.7,3985.6,0.7714]
[1761077341017,0.772,3985.7,3985.6,0.4405]
[1761077341223,0.00264734,3985.9,3985.8,0.7714]
[1761077341224,0.45405734,3985.9,3985.8,0.7714]
[1761077341426,0.54734734,3985.9,3985.8,0.7714]
[1761077341620,0.77464734,3985.9,3985.8,0.7714]
[1761077341820,0.77464734,3985.9,3985.8,0.4405]
[1761077342020,1.22605734,3985.9,3985.8,0.4405]
[1761077342522,1.22605734,3985.9,3985.8,0.2168]
[1761077343018,0.5842,3985.5,3985.4,3.4246]
[1761077343224,1.35195,3985.5,3985.4,3.4246]
[1761077343614,1.35195,3985.5,3985.4,3.2078]
[1761077344042,0.2273,3985.1,3985.0,4.10658433]
[1761077344234,0.772,3985.1,3985.0,3.2078]
[1761077344423,0.772,3985.1,3985.0,4.43071]
[1761077344928,1.2235,3985.1,3985.0,3.2078]
[1761077345329,0.772,3984.6,3984.5,9.93578433]
[1761077345525,0.772,3984.6,3984.5,9.037]
[1761077345526,1.22355,3984.6,3984.5,9.037]
[1761077346226,0.772,3984.6,3984.5,9.4775]
[1761077346428,1.22355,3984.6,3984.5,9.4775]
[1761077347329,1.22355,3984.6,3984.5,9.2538]